fUSD/lending_fUSD_20250617
["ID","MTS","AMOUNT","RATE_DAILY","PERIOD"]
[366304086,1750180239624,-490.0,0.00016438,2]
[366304087,1750180239635,-500.0,0.00016438,2]
[366304088,1750180239649,-490.0,0.00016438,2]
[366304089,1750180239660,-628.05,0.00016438,2]
[366304090,1750180239669,-490.0,0.00016438,2]
[366304091,1750180239679,-490.0,0.00016438,2]
[366304092,1750180239702,-490.0,0.00016438,2]
[366304093,1750180239713,-541.29,0.00016438,2]
[366304094,1750180239723,-608.75575435,0.00016438,2]
[366304095,1750180239734,-490.0,0.00016438,2]
[366304096,1750180239744,-490.0,0.00016438,2]
[366304097,1750180239755,-501.33760106,0.00016438,2]
[366304098,1750180239765,-490.0,0.00016438,2]
[366304099,1750180239778,-490.0,0.00016438,2]
[366304100,1750180239789,-151.0,0.00016438,2]
[366304101,1750180239799,-151.0,0.00016438,2]
[366304102,1750180239810,-151.0,0.00016438,2]
[366304103,1750180239820,-490.0,0.00016438,2]
[366304104,1750180239830,-490.0,0.00016438,2]
[366304105,1750180239840,-151.0,0.00016438,2]
[366304106,1750180239855,-151.0,0.00016438,2]
[366304107,1750180239871,-151.0,0.00016438,2]
[366304108,1750180239881,-519.78,0.00016438,2]
[366304109,1750180239894,-490.0,0.00016438,2]
[366304110,1750180239904,-490.0,0.00016438,2]
[366304111,1750180239915,-490.0,0.00016438,2]
[366304113,1750180239927,-490.0,0.00016438,2]
[366304114,1750180239938,-490.0,0.00016438,2]
[366304116,1750180239948,-490.0,0.00016438,2]
[366304117,1750180239959,-490.0,0.00016438,2]
[366304118,1750180239970,-639.38336125,0.00016438,2]
[366304119,1750180239980,-490.0,0.00016438,2]
[366304120,1750180239990,-490.0,0.00016438,2]
[366304121,1750180240000,-490.0,0.00016438,2]
[366304122,1750180240011,-490.0,0.00016438,2]
[366304123,1750180240021,-490.0,0.00016438,2]
[366304124,1750180240031,-490.0,0.00016438,2]
[366304126,1750180240041,-490.0,0.00016438,2]
[366304127,1750180240052,-490.0,0.00016438,2]
[366304128,1750180240062,-490.0,0.00016438,2]
[366304129,1750180240072,-151.0,0.00016438,2]
[366304130,1750180240083,-151.0,0.00016438,2]
[366304132,1750180240094,-490.0,0.00016438,2]
[366304133,1750180240104,-151.0,0.00016438,2]
[366304134,1750180240118,-151.0,0.00016438,2]
[366304135,1750180240128,-490.0,0.00016438,2]
[366304136,1750180240143,-490.0,0.00016438,2]
[366304137,1750180240155,-490.0,0.00016438,2]
[366304138,1750180240166,-490.0,0.00016438,2]
[366304139,1750180240177,-490.0,0.00016438,2]
[366304140,1750180240188,-490.0,0.00016438,2]
[366304141,1750180240199,-490.0,0.00016438,2]
[366304142,1750180240210,-490.0,0.00016438,2]
[366304143,1750180240221,-490.0,0.00016438,2]
[366304144,1750180240231,-490.0,0.00016438,2]
[366304145,1750180240241,-964.23,0.00016438,2]
[366304146,1750180240251,-490.0,0.00016438,2]
[366304147,1750180240262,-490.0,0.00016438,2]
[366304148,1750180240273,-490.0,0.00016438,2]
[366304149,1750180240284,-490.0,0.00016438,2]
[366304150,1750180240295,-490.0,0.00016438,2]
[366304151,1750180240306,-490.0,0.00016438,2]
[366304152,1750180240317,-490.0,0.00016438,2]
[366304153,1750180240328,-876.39,0.00016438,2]
[366304154,1750180240338,-490.0,0.00016438,2]
[366304155,1750180240348,-490.0,0.00016438,2]
[366304156,1750180240359,-490.0,0.00016438,2]
[366304157,1750180240373,-490.0,0.00016438,2]
[366304158,1750180240384,-490.0,0.00016438,2]
[366304159,1750180240394,-490.0,0.00016438,2]
[366304160,1750180240404,-490.0,0.00016438,2]
[366304161,1750180240414,-490.0,0.00016438,2]
[366304162,1750180240425,-490.0,0.00016438,2]
[366304163,1750180240436,-490.0,0.00016438,2]
[366304164,1750180240447,-490.0,0.00016438,2]
[366304165,1750180240458,-490.0,0.00016438,2]
[366304166,1750180240468,-417.299513,0.00016438,2]
[366304167,1750180240479,-490.0,0.00016438,2]
[366304168,1750180240489,-572.51,0.00016438,2]
[366304169,1750180240499,-490.0,0.00016438,2]
[366304170,1750180240510,-219.06771866,0.00016438,2]
[366304172,1750180241504,-250.17115501,0.00016438,2]
[366304173,1750180241516,-20.76112633,0.00016438,2]
[366304174,1750180241526,-490.0,0.00016438,2]
[366304175,1750180241535,-490.0,0.00016438,2]
[366304176,1750180241550,-46.14887367,0.00016438,2]
[366304177,1750180241655,-443.85112633,0.00016438,2]
[366304178,1750180241665,-490.0,0.00016438,2]
[366304179,1750180241676,-490.0,0.00016438,2]
[366304180,1750180241688,-490.0,0.00016438,2]
[366304181,1750180241698,-490.0,0.00016438,2]
[366304182,1750180241708,-490.0,0.00016438,2]
[366304183,1750180241718,-490.0,0.00016438,2]
[366304184,1750180241727,-490.0,0.00016438,2]
[366304185,1750180241737,-490.0,0.00016438,2]
[366304186,1750180241748,-490.0,0.00016438,2]
[366304187,1750180241758,-544.79,0.00016438,2]
[366304188,1750180241767,-490.0,0.00016438,2]
[366304189,1750180241778,-490.0,0.00016438,2]
[366304190,1750180241787,-490.0,0.00016438,2]
[366304191,1750180241797,-490.0,0.00016438,2]
[366304192,1750180241806,-547.17,0.00016438,2]
[366304193,1750180241816,-490.0,0.00016438,2]
[366304194,1750180241826,-490.0,0.00016438,2]
[366304195,1750180241835,-490.11,0.00016438,2]
[366304196,1750180241849,-415.46405959,0.00016438,2]
[366304197,1750180241863,-116.78594041,0.00016438,2]
[366304198,1750180241873,-490.0,0.00016438,2]
[366304199,1750180241885,-490.0,0.00016438,2]
[366304200,1750180241899,-490.0,0.00016438,2]
[366304201,1750180241909,-604.68,0.00016438,2]
[366304202,1750180241919,-348.80486349,0.00016438,2]
[366304203,1750180241929,-490.0,0.00016438,2]
[366304204,1750180241940,-602.5,0.00016438,2]
[366304205,1750180241950,-490.0,0.00016438,2]
[366304206,1750180241960,-490.0,0.00016438,2]
[366304207,1750180241970,-80.6114061,0.00016438,2]
[366304208,1750180241983,-409.3885939,0.00016438,2]
[366304209,1750180241994,-1008.75,0.00016438,2]
[366304210,1750180242004,-490.0,0.00016438,2]
[366304211,1750180242015,-490.0,0.00016438,2]
[366304212,1750180242026,-24.91473399,0.00016438,2]
[366304213,1750180242039,-465.08526601,0.00016438,2]
[366304214,1750180242048,-490.0,0.00016438,2]
[366304215,1750180242060,-464.10255988,0.00016438,2]
[366304216,1750180242073,-25.89744012,0.00016438,2]
[366304217,1750180242083,-490.0,0.00016438,2]
[366304218,1750180242094,-549.81757129,0.00016438,2]
[366304219,1750180242106,-1410.72242871,0.00016438,2]
[366304220,1750180242117,-490.0,0.00016438,2]
[366304221,1750180242127,-588.71883042,0.00016438,2]
[366304222,1750180242140,-999.80116958,0.00016438,2]
[366304223,1750180242149,-490.0,0.00016438,2]
[366304224,1750180242159,-490.0,0.00016438,2]
[366304225,1750180242169,-355.03530342,0.00016438,2]
[366304226,1750180242182,-134.96469658,0.00016438,2]
[366304227,1750180242192,-490.0,0.00016438,2]
[366304228,1750180242201,-490.0,0.00016438,2]
[366304229,1750180242212,-1241.56,0.00016438,2]
[366304230,1750180242222,-512.82,0.00016438,2]
[366304231,1750180242232,-490.0,0.00016438,2]
[366304232,1750180242242,-490.0,0.00016438,2]
[366304233,1750180242251,-592.9,0.00016438,2]
[366304234,1750180242261,-490.0,0.00016438,2]
[366304235,1750180242271,-490.0,0.00016438,2]
[366304236,1750180242281,-490.0,0.00016438,2]
[366304237,1750180242291,-490.0,0.00016438,2]
[366304238,1750180242301,-490.0,0.00016438,2]
[366304239,1750180242311,-490.0,0.00016438,2]
[366304240,1750180242320,-490.0,0.00016438,2]
[366304241,1750180242330,-490.0,0.00016438,2]
[366304242,1750180242340,-490.0,0.00016438,2]
[366304243,1750180242350,-490.0,0.00016438,2]
[366304244,1750180242360,-490.0,0.00016438,2]
[366304245,1750180242371,-635.34,0.00016438,2]
[366304246,1750180242380,-490.0,0.00016438,2]
[366304247,1750180242390,-490.0,0.00016438,2]
[366304248,1750180242400,-492.66070411,0.00016438,2]
[366304249,1750180242411,-490.0,0.00016438,2]
[366304250,1750180242429,-490.0,0.00016438,2]
[366304251,1750180242440,-849.96,0.00016438,2]
[366304252,1750180242459,-490.0,0.00016438,2]
[366304253,1750180242470,-564.66,0.00016438,2]
[366304254,1750180242480,-2315.38,0.00016438,2]
[366304255,1750180242490,-490.0,0.00016438,2]
[366304256,1750180242500,-490.0,0.00016438,2]
[366304257,1750180242510,-490.0,0.00016438,2]
[366304258,1750180242522,-490.0,0.00016438,2]
[366304259,1750180242532,-490.0,0.00016438,2]
[366304260,1750180242543,-490.0,0.00016438,2]
[366304261,1750180242553,-490.0,0.00016438,2]
[366304262,1750180242563,-490.0,0.00016438,2]
[366304263,1750180242573,-1116.43,0.00016438,2]
[366304264,1750180242583,-490.0,0.00016438,2]
[366304265,1750180242593,-630.68,0.00016438,2]
[366304266,1750180242603,-490.0,0.00016438,2]
[366304267,1750180242613,-490.0,0.00016438,2]
[366304268,1750180242626,-490.0,0.00016438,2]
[366304269,1750180242636,-1444.79,0.00016438,2]
[366304270,1750180242646,-490.0,0.00016438,2]
[366304271,1750180242656,-490.0,0.00016438,2]
[366304272,1750180242666,-1551.42,0.00016438,2]
[366304273,1750180242676,-490.0,0.00016438,2]
[366304274,1750180242686,-490.0,0.00016438,2]
[366304275,1750180242695,-490.0,0.00016438,2]
[366304276,1750180242706,-490.0,0.00016438,2]
[366304277,1750180242716,-490.0,0.00016438,2]
[366304278,1750180242726,-490.0,0.00016438,2]
[366304280,1750180242736,-490.0,0.00016438,2]
[366304281,1750180242746,-490.0,0.00016438,2]
[366304282,1750180242756,-490.0,0.00016438,2]
[366304283,1750180242766,-393.90300104,0.00016438,2]
[366304285,1750180242776,-581.8,0.00016438,2]
[366304286,1750180242786,-490.0,0.00016438,2]
[366304287,1750180242797,-490.0,0.00016438,2]
[366304288,1750180242807,-490.0,0.00016438,2]
[366304289,1750180242817,-843.5,0.00016438,2]
[366304290,1750180242827,-490.0,0.00016438,2]
[366304292,1750180242838,-490.0,0.00016438,2]
[366304294,1750180242851,-347.7030848,0.00016438,2]
[366304295,1750180242864,-490.0,0.00016438,2]
[366304297,1750180242875,-490.0,0.00016438,2]
[366304298,1750180242885,-490.0,0.00016438,2]
[366304299,1750180242897,-490.0,0.00016438,2]
[366304300,1750180242907,-168.84920608,0.00016438,2]
[366304301,1750180242917,-577.94387862,0.00016438,2]
[366304302,1750180242929,-490.0,0.00016438,2]
[366304303,1750180242939,-490.0,0.00016438,2]
[366304304,1750180242950,-490.0,0.00016438,2]
[366304305,1750180242961,-490.0,0.00016438,2]
[366304306,1750180242971,-490.0,0.00016438,2]
[366304307,1750180242984,-490.0,0.00016438,2]
[366304308,1750180242994,-490.0,0.00016438,2]
[366304310,1750180243004,-1286.68,0.00016438,2]
[366304311,1750180243015,-151.38814331,0.00016438,2]
[366304312,1750180243026,-490.0,0.00016438,2]
[366304313,1750180243036,-660.6,0.00016438,2]
[366304314,1750180243046,-490.0,0.00016438,2]
[366304315,1750180243056,-490.0,0.00016438,2]
[366304316,1750180243066,-490.0,0.00016438,2]
[366304317,1750180243077,-531.29,0.00016438,2]
[366304318,1750180243087,-490.0,0.00016438,2]
[366304320,1750180243098,-531.29,0.00016438,2]
[366304321,1750180243108,-490.0,0.00016438,2]
[366304322,1750180243120,-531.29,0.00016438,2]
[366304323,1750180243131,-1152.61,0.00016438,2]
[366304324,1750180243141,-737.4,0.00016438,2]
[366304325,1750180243152,-490.0,0.00016438,2]
[366304326,1750180243164,-500.0,0.00016438,2]
[366304327,1750180243180,-500.0,0.00016438,2]
[366304328,1750180243192,-500.0,0.00016438,2]
[366304329,1750180243204,-794.87,0.00016438,2]
[366304330,1750180243216,-614.39,0.00016438,2]
[366304331,1750180243228,-490.0,0.00016438,2]
[366304332,1750180243240,-333.74472146,0.00016438,2]
[366304333,1750180243253,-490.0,0.00016438,2]
[366304334,1750180243265,-490.0,0.00016438,2]
[366304335,1750180243276,-490.0,0.00016438,2]
[366304336,1750180243287,-490.0,0.00016438,2]
[366304337,1750180243297,-490.0,0.00016438,2]
[366304338,1750180243308,-636.77,0.00016438,2]
[366304339,1750180243318,-490.0,0.00016438,2]
[366304340,1750180243328,-994.82,0.00016438,2]
[366304341,1750180243340,-490.0,0.00016438,2]
[366304342,1750180243351,-490.0,0.00016438,2]
[366304343,1750180243361,-490.0,0.00016438,2]
[366304344,1750180243375,-490.0,0.00016438,2]
[366304345,1750180243386,-490.0,0.00016438,2]
[366304346,1750180243397,-480.0,0.00016438,2]
[366304347,1750180243407,-1214.12,0.00016438,2]
[366304348,1750180243417,-490.0,0.00016438,2]
[366304349,1750180243427,-940.11,0.00016438,2]
[366304350,1750180243437,-490.0,0.00016438,2]
[366304351,1750180243447,-490.0,0.00016438,2]
[366304352,1750180243457,-490.0,0.00016438,2]
[366304353,1750180243467,-613.55,0.00016438,2]
[366304354,1750180243478,-1296.68,0.00016438,2]
[366304356,1750180243487,-490.0,0.00016438,2]
[366304358,1750180243497,-490.0,0.00016438,2]
[366304360,1750180243506,-525.6,0.00016438,2]
[366304361,1750180243516,-490.0,0.00016438,2]
[366304363,1750180243527,-495.87,0.00016438,2]
[366304365,1750180243537,-490.0,0.00016438,2]
[366304367,1750180243546,-1090.21,0.00016438,2]
[366304369,1750180243556,-756.31,0.00016438,2]
[366304371,1750180243566,-490.0,0.00016438,2]
[366304373,1750180243576,-490.0,0.00016438,2]
[366304375,1750180243585,-490.0,0.00016438,2]
[366304378,1750180243595,-490.0,0.00016438,2]
[366304381,1750180243605,-312.09,0.00016438,2]
[366304384,1750180243618,-490.0,0.00016438,2]
[366304386,1750180243628,-490.0,0.00016438,2]
[366304388,1750180243639,-490.0,0.00016438,2]
[366304390,1750180243649,-490.0,0.00016438,2]
[366304392,1750180243658,-881.2,0.00016438,2]
[366304394,1750180243668,-490.0,0.00016438,2]
[366304396,1750180243679,-490.0,0.00016438,2]
[366304398,1750180243688,-490.0,0.00016438,2]
[366304400,1750180243698,-551.20196307,0.00016438,2]
[366304401,1750180243708,-490.0,0.00016438,2]
[366304402,1750180243717,-490.0,0.00016438,2]
[366304403,1750180243727,-490.0,0.00016438,2]
[366304404,1750180243736,-490.0,0.00016438,2]
[366304405,1750180243747,-771.33,0.00016438,2]
[366304406,1750180243756,-884.17,0.00016438,2]
[366304407,1750180243766,-490.0,0.00016438,2]
[366304408,1750180243776,-592.04,0.00016438,2]
[366304409,1750180243786,-490.0,0.00016438,2]
[366304410,1750180243795,-490.0,0.00016438,2]
[366304411,1750180243805,-490.0,0.00016438,2]
[366304412,1750180243815,-1914.85,0.00016438,2]
[366304413,1750180243825,-490.0,0.00016438,2]
[366304414,1750180243835,-490.0,0.00016438,2]
[366304415,1750180243847,-613.52,0.00016438,2]
[366304416,1750180243858,-490.0,0.00016438,2]
[366304417,1750180243868,-490.0,0.00016438,2]
[366304418,1750180243880,-490.0,0.00016438,2]
[366304419,1750180243893,-853.26,0.00016438,2]
[366304420,1750180243903,-1243.41,0.00016438,2]
[366304421,1750180243912,-490.0,0.00016438,2]
[366304422,1750180243922,-273.11834355,0.00016438,2]
[366304424,1750180243934,-490.0,0.00016438,2]
[366304426,1750180243945,-490.0,0.00016438,2]
[366304428,1750180243955,-490.0,0.00016438,2]
[366304430,1750180243965,-662.79,0.00016438,2]
[366304432,1750180243976,-490.0,0.00016438,2]
[366304435,1750180243987,-490.0,0.00016438,2]
[366304437,1750180243997,-490.0,0.00016438,2]
[366304439,1750180244007,-490.0,0.00016438,2]
[366304441,1750180244018,-490.0,0.00016438,2]
[366304443,1750180244028,-858.22,0.00016438,2]
[366304445,1750180244037,-490.0,0.00016438,2]
[366304447,1750180244048,-490.0,0.00016438,2]
[366304449,1750180244058,-490.0,0.00016438,2]
[366304450,1750180244068,-490.0,0.00016438,2]
[366304452,1750180244079,-1529.31,0.00016438,2]
[366304454,1750180244089,-490.0,0.00016438,2]
[366304456,1750180244099,-490.0,0.00016438,2]
[366304458,1750180244109,-490.0,0.00016438,2]
[366304460,1750180244122,-632.57,0.00016438,2]
[366304462,1750180244132,-217.55884694,0.00016438,2]
[366304469,1750180244186,-272.44115306,0.00016438,2]
[366304471,1750180244197,-490.0,0.00016438,2]
[366304473,1750180244206,-586.62,0.00016438,2]
[366304475,1750180244217,-487.32304433,0.00016438,2]
[366304477,1750180244229,-2.67695567,0.00016438,2]
[366304479,1750180244239,-490.0,0.00016438,2]
[366304481,1750180244249,-575.53,0.00016438,2]
[366304483,1750180244258,-76.24124701,0.00016438,2]
[366304490,1750180244319,-413.75875299,0.00016438,2]
[366304492,1750180244329,-484.79108555,0.00016438,2]
[366304494,1750180244341,-36.06891445,0.00016438,2]
[366304496,1750180244351,-336.20298553,0.00016438,2]
[366304530,1750180245278,-200.0,0.00015068,2]
[366304531,1750180245289,-184.65701447,0.00016438,2]
[366304532,1750180245300,-520.86,0.00016438,2]
[366304533,1750180245310,-490.0,0.00016438,2]
[366304534,1750180245321,-233.41178653,0.00016438,2]
[366304535,1750180245363,-912.04821347,0.00016438,2]
[366304536,1750180245375,-520.86,0.00016438,2]
[366304537,1750180245385,-520.86,0.00016438,2]
[366304538,1750180245395,-520.86,0.00016438,2]
[366304539,1750180245404,-520.86,0.00016438,2]
[366304540,1750180245414,-520.86,0.00016438,2]
[366304541,1750180245423,-490.0,0.00016438,2]
[366304542,1750180245433,-520.86,0.00016438,2]
[366304543,1750180245443,-700.50706448,0.00016438,2]
[366304544,1750180245510,-59.23293552,0.00016438,2]
[366304545,1750180245520,-520.86,0.00016438,2]
[366304546,1750180245530,-706.71,0.00016438,2]
[366304547,1750180245540,-520.86,0.00016438,2]
[366304548,1750180245549,-424.08279994,0.00016438,2]
[366304549,1750180245565,-96.77720006,0.00016438,2]
[366304550,1750180245574,-520.86,0.00016438,2]
[366304551,1750180245585,-490.0,0.00016438,2]
[366304552,1750180245595,-520.86,0.00016438,2]
[366304553,1750180245605,-520.86,0.00016438,2]
[366304554,1750180245616,-520.86,0.00016438,2]
[366304555,1750180245627,-520.86,0.00016438,2]
[366304556,1750180245638,-520.86,0.00016438,2]
[366304557,1750180245648,-520.86,0.00016438,2]
[366304558,1750180245658,-512.51,0.00016438,2]
[366304559,1750180245668,-490.0,0.00016438,2]
[366304560,1750180245678,-639.09,0.00016438,2]
[366304561,1750180245688,-490.0,0.00016438,2]
[366304562,1750180245698,-490.0,0.00016438,2]
[366304563,1750180245707,-490.0,0.00016438,2]
[366304564,1750180245718,-490.0,0.00016438,2]
[366304565,1750180245728,-670.54,0.00016438,2]
[366304566,1750180245738,-1059.58,0.00016438,2]
[366304568,1750180245749,-761.93,0.00016438,2]
[366304571,1750180245759,-490.0,0.00016438,2]
[366304572,1750180245769,-490.0,0.00016438,2]
[366304574,1750180245780,-490.0,0.00016438,2]
[366304576,1750180245792,-490.0,0.00016438,2]
[366304578,1750180245802,-490.0,0.00016438,2]
[366304581,1750180245812,-490.0,0.00016438,2]
[366304584,1750180245822,-715.44,0.00016438,2]
[366304587,1750180245831,-490.0,0.00016438,2]
[366304588,1750180245841,-490.0,0.00016438,2]
[366304590,1750180245854,-490.0,0.00016438,2]
[366304593,1750180245865,-490.0,0.00016438,2]
[366304596,1750180245877,-646.81,0.00016438,2]
[366304600,1750180245887,-589.23,0.00016438,2]
[366304604,1750180245897,-490.0,0.00016438,2]
[366304607,1750180245907,-1195.99,0.00016438,2]
[366304609,1750180245917,-490.0,0.00016438,2]
[366304612,1750180245928,-490.0,0.00016438,2]
[366304615,1750180245939,-500.0,0.00016438,2]
[366304618,1750180245949,-1174.29,0.00016438,2]
[366304621,1750180245959,-490.0,0.00016438,2]
[366304623,1750180245969,-300.0,0.00016438,2]
[366304625,1750180245979,-490.0,0.00016438,2]
[366304627,1750180245989,-490.0,0.00016438,2]
[366304629,1750180245999,-490.0,0.00016438,2]
[366304631,1750180246010,-847.6,0.00016438,2]
[366304633,1750180246020,-490.0,0.00016438,2]
[366304634,1750180246030,-490.0,0.00016438,2]
[366304636,1750180246040,-490.0,0.00016438,2]
[366304638,1750180246050,-490.0,0.00016438,2]
[366304640,1750180246060,-490.0,0.00016438,2]
[366304642,1750180246070,-490.0,0.00016438,2]
[366304644,1750180246080,-704.66,0.00016438,2]
[366304646,1750180246091,-606.27,0.00016438,2]
[366304648,1750180246102,-643.46,0.00016438,2]
[366304650,1750180246113,-1328.48,0.00016438,2]
[366304652,1750180246126,-1746.85,0.00016438,2]
[366304654,1750180246136,-490.0,0.00016438,2]
[366304656,1750180246146,-490.0,0.00016438,2]
[366304657,1750180246157,-490.0,0.00016438,2]
[366304658,1750180246167,-490.0,0.00016438,2]
[366304659,1750180246178,-490.0,0.00016438,2]
[366304660,1750180246189,-490.0,0.00016438,2]
[366304661,1750180246199,-490.0,0.00016438,2]
[366304662,1750180246210,-490.0,0.00016438,2]
[366304663,1750180246220,-625.21,0.00016438,2]
[366304665,1750180246230,-616.63,0.00016438,2]
[366304667,1750180246240,-636.71,0.00016438,2]
[366304669,1750180246251,-581.81,0.00016438,2]
[366304671,1750180246261,-490.0,0.00016438,2]
[366304672,1750180246271,-741.23,0.00016438,2]
[366304673,1750180246281,-1117.91,0.00016438,2]
[366304674,1750180246291,-490.0,0.00016438,2]
[366304675,1750180246300,-490.0,0.00016438,2]
[366304676,1750180246310,-490.0,0.00016438,2]
[366304677,1750180246319,-490.0,0.00016438,2]
[366304678,1750180246329,-520.42,0.00016438,2]
[366304679,1750180246339,-490.0,0.00016438,2]
[366304680,1750180246349,-490.0,0.00016438,2]
[366304681,1750180246358,-490.0,0.00016438,2]
[366304682,1750180246369,-708.85,0.00016438,2]
[366304683,1750180246379,-1402.54,0.00016438,2]
[366304684,1750180246389,-521.17,0.00016438,2]
[366304685,1750180246399,-490.0,0.00016438,2]
[366304686,1750180246409,-720.16,0.00016438,2]
[366304687,1750180246419,-490.0,0.00016438,2]
[366304688,1750180246428,-490.0,0.00016438,2]
[366304689,1750180246438,-490.0,0.00016438,2]
[366304691,1750180246449,-480.88762562,0.00016438,2]
[366304693,1750180246459,-490.0,0.00016438,2]
[366304694,1750180246469,-490.0,0.00016438,2]
[366304697,1750180246480,-490.0,0.00016438,2]
[366304699,1750180246489,-490.0,0.00016438,2]
[366304702,1750180246509,-718.7,0.00016438,2]
[366304704,1750180246520,-490.0,0.00016438,2]
[366304706,1750180246530,-643.54,0.00016438,2]
[366304708,1750180246540,-490.0,0.00016438,2]
[366304710,1750180246550,-1286.52,0.00016438,2]
[366304712,1750180246560,-490.0,0.00016438,2]
[366304715,1750180246570,-490.0,0.00016438,2]
[366304717,1750180246581,-1381.55,0.00016438,2]
[366304719,1750180246591,-490.0,0.00016438,2]
[366304721,1750180246602,-490.0,0.00016438,2]
[366304723,1750180246613,-470.31257681,0.00016438,2]
[366304725,1750180246625,-672.53,0.00016438,2]
[366304727,1750180246635,-490.0,0.00016438,2]
[366304729,1750180246646,-490.0,0.00016438,2]
[366304731,1750180246657,-490.0,0.00016438,2]
[366304733,1750180246667,-280.0,0.00016438,2]
[366304735,1750180246678,-490.0,0.00016438,2]
[366304737,1750180246689,-602.71,0.00016438,2]
[366304739,1750180246700,-500.0,0.00016438,2]
[366304741,1750180246711,-1005.0,0.00016438,2]
[366304743,1750180246721,-490.0,0.00016438,2]
[366304745,1750180246732,-490.0,0.00016438,2]
[366304747,1750180246742,-490.0,0.00016438,2]
[366304749,1750180246752,-490.0,0.00016438,2]
[366304751,1750180246763,-490.0,0.00016438,2]
[366304753,1750180246773,-490.0,0.00016438,2]
[366304755,1750180246783,-225.5055655,0.00016438,2]
[366304759,1750180246809,-264.4944345,0.00016438,2]
[366304761,1750180246819,-490.0,0.00016438,2]
[366304763,1750180246830,-746.22,0.00016438,2]
[366304766,1750180246852,-490.0,0.00016438,2]
[366304768,1750180246862,-490.0,0.00016438,2]
[366304770,1750180246873,-418.79096089,0.00016438,2]
[366304772,1750180246883,-812.39,0.00016438,2]
[366304774,1750180246893,-490.0,0.00016438,2]
[366304776,1750180246903,-490.0,0.00016438,2]
[366304778,1750180246914,-970.64,0.00016438,2]
[366304780,1750180246926,-490.0,0.00016438,2]
[366304782,1750180246936,-490.0,0.00016438,2]
[366304784,1750180246946,-490.0,0.00016438,2]
[366304787,1750180246960,-490.0,0.00016438,2]
[366304789,1750180246971,-490.0,0.00016438,2]
[366304791,1750180246982,-490.0,0.00016438,2]
[366304793,1750180246993,-1421.96,0.00016438,2]
[366304795,1750180247003,-794.04,0.00016438,2]
[366304797,1750180247014,-490.0,0.00016438,2]
[366304799,1750180247025,-717.83,0.00016438,2]
[366304801,1750180247035,-490.0,0.00016438,2]
[366304803,1750180247046,-490.0,0.00016438,2]
[366304805,1750180247056,-490.0,0.00016438,2]
[366304807,1750180247068,-436.25959113,0.00016438,2]
[366304809,1750180247079,-490.0,0.00016438,2]
[366304811,1750180247090,-521.55,0.00016438,2]
[366304813,1750180247101,-490.0,0.00016438,2]
[366304815,1750180247112,-490.0,0.00016438,2]
[366304817,1750180247127,-536.12020035,0.00016438,2]
[366304820,1750180247138,-490.0,0.00016438,2]